[Event "Titled Tuesday Blitz November 08 Early 2022"]
[White "Martinez Alcantara, Jose Eduardo"]
[Black "Nakamura, Hikaru"]
[WhiteFideId "3805662"]
[BlackFideId "2016192"]
[WhiteElo "2705"]
[BlackElo "2909"]
[Result "1/2-1/2"]
[Round "09"]
[TimeControl "180+1"]
[Date "2022.11.08"]
[WhiteClock "0:00:03"]
[BlackClock "0:00:34"]

1. e4 {[%clk 0:03:00]}  d5 {[%clk 0:02:58]} 2. exd5 {[%clk 0:03:00]}  Qxd5 {[%clk 0:02:59]} 3. Nf3 {[%clk 0:03:01]}  Bg4 {[%clk 0:02:57]} 4. Be2 {[%clk 0:03:01]}  e6 {[%clk 0:02:57]} 5. h3 {[%clk 0:03:01]}  Bh5 {[%clk 0:02:57]} 6. d4 {[%clk 0:02:59]}  Nc6 {[%clk 0:02:56]} 7. Be3 {[%clk 0:02:55]}  Nf6 {[%clk 0:02:53]} 8. O-O {[%clk 0:02:55]}  Be7 {[%clk 0:02:49]} 9. c4 {[%clk 0:02:55]}  Qd8 {[%clk 0:02:48]} 10. Nc3 {[%clk 0:02:55]}  O-O {[%clk 0:02:48]} 11. a3 {[%clk 0:02:53]}  Qc8 {[%clk 0:02:45]} 12. d5 {[%clk 0:02:46]}  Rd8 {[%clk 0:02:45]} 13. Qb3 {[%clk 0:02:40]}  Bxf3 {[%clk 0:02:39]} 14. Bxf3 {[%clk 0:02:39]}  Ne5 {[%clk 0:02:40]} 15. Be2 {[%clk 0:02:39]}  c5 {[%clk 0:02:35]} 16. dxe6 {[%clk 0:02:22]}  Qxe6 {[%clk 0:02:27]} 17. Rad1 {[%clk 0:02:20]}  b6 {[%clk 0:02:23]} 18. Rxd8+ {[%clk 0:02:14]}  Rxd8 {[%clk 0:02:23]} 19. Rd1 {[%clk 0:02:14]}  Rxd1+ {[%clk 0:02:22]} 20. Nxd1 {[%clk 0:02:15]}  Nc6 {[%clk 0:02:20]} 21. Qd3 {[%clk 0:01:58]}  Bd6 {[%clk 0:02:14]} 22. Nc3 {[%clk 0:01:44]}  Be5 {[%clk 0:02:14]} 23. Bf3 {[%clk 0:01:28]}  Nd4 {[%clk 0:02:13]} 24. Bd5 {[%clk 0:01:23]}  Qf5 {[%clk 0:01:59]} 25. Ne4 {[%clk 0:00:44]}  Ne2+ {[%clk 0:01:53]} 26. Qxe2 {[%clk 0:00:43]}  Nxd5 {[%clk 0:01:50]} 27. Bd2 {[%clk 0:00:26]}  Nc7 {[%clk 0:01:35]} 28. Bc3 {[%clk 0:00:25]}  h5 {[%clk 0:01:23]} 29. Bxe5 {[%clk 0:00:16]}  Qxe5 {[%clk 0:01:24]} 30. Ng3 {[%clk 0:00:17]}  Qg5 {[%clk 0:01:14]} 31. Nxh5 {[%clk 0:00:09]}  Ne6 {[%clk 0:01:14]} 32. Ng3 {[%clk 0:00:09]}  Nd4 {[%clk 0:01:15]} 33. Qe8+ {[%clk 0:00:09]}  Kh7 {[%clk 0:01:14]} 34. Qxf7 {[%clk 0:00:08]}  Qc1+ {[%clk 0:01:15]} 35. Kh2 {[%clk 0:00:09]}  Qxb2 {[%clk 0:01:15]} 36. Qh5+ {[%clk 0:00:09]}  Kg8 {[%clk 0:01:15]} 37. Qe8+ {[%clk 0:00:10]}  Kh7 {[%clk 0:01:16]} 38. Qh5+ {[%clk 0:00:09]}  Kg8 {[%clk 0:01:16]} 39. Qd5+ {[%clk 0:00:07]}  Kf8 {[%clk 0:01:12]} 40. Qa8+ {[%clk 0:00:07]}  Kf7 {[%clk 0:01:12]} 41. Qxa7+ {[%clk 0:00:07]}  Kg6 {[%clk 0:01:11]} 42. Qc7 {[%clk 0:00:06]}  Nf3+ {[%clk 0:00:53]} 43. gxf3 {[%clk 0:00:06]}  Qxf2+ {[%clk 0:00:54]} 44. Kh1 {[%clk 0:00:06]}  Qxf3+ {[%clk 0:00:54]} 45. Kh2 {[%clk 0:00:06]}  Qf2+ {[%clk 0:00:54]} 46. Kh1 {[%clk 0:00:07]}  Qf3+ {[%clk 0:00:53]} 47. Kg1 {[%clk 0:00:08]}  Qe3+ {[%clk 0:00:54]} 48. Kg2 {[%clk 0:00:08]}  Qd2+ {[%clk 0:00:52]} 49. Kf3 {[%clk 0:00:08]}  Qc3+ {[%clk 0:00:49]} 50. Kf2 {[%clk 0:00:08]}  Qd4+ {[%clk 0:00:47]} 51. Kf1 {[%clk 0:00:09]}  Qa1+ {[%clk 0:00:44]} 52. Kf2 {[%clk 0:00:09]}  Qd4+ {[%clk 0:00:44]} 53. Kg2 {[%clk 0:00:09]}  Qd2+ {[%clk 0:00:40]} 54. Kf3 {[%clk 0:00:07]}  Qc3+ {[%clk 0:00:36]} 55. Kf2 {[%clk 0:00:03]}  Qd4+ {[%clk 0:00:34]} 1/2-1/2


[Site "https://www.chess.com"]

[Event "Titled Tuesday Blitz November 08 Early 2022"]
[White "Matinian, Nikita"]
[Black "Salman, Pavel"]
[WhiteFideId "24129100"]
[BlackFideId "24153753"]
[WhiteElo "2728"]
[BlackElo "2533"]
[Result "1-0"]
[Round "09"]
[TimeControl "180+1"]
[Date "2022.11.09"]
[WhiteClock "0:00:09"]
[BlackClock "0:00:04"]

1. e4 {[%clk 0:02:56]}  d6 {[%clk 0:03:00]} 2. d4 {[%clk 0:02:53]}  Nf6 {[%clk 0:03:00]} 3. Nc3 {[%clk 0:02:54]}  g6 {[%clk 0:03:00]} 4. f4 {[%clk 0:02:55]}  Bg7 {[%clk 0:03:01]} 5. Nf3 {[%clk 0:02:55]}  c5 {[%clk 0:03:01]} 6. Be3 {[%clk 0:02:53]}  Qa5 {[%clk 0:02:53]} 7. Qd2 {[%clk 0:02:50]}  O-O {[%clk 0:02:49]} 8. h3 {[%clk 0:02:47]}  b5 {[%clk 0:02:40]} 9. Nxb5 {[%clk 0:02:40]}  Qxd2+ {[%clk 0:02:37]} 10. Nxd2 {[%clk 0:02:41]}  cxd4 {[%clk 0:02:28]} 11. Bxd4 {[%clk 0:02:36]}  Nc6 {[%clk 0:02:26]} 12. Bc3 {[%clk 0:02:31]}  Rb8 {[%clk 0:02:14]} 13. Bd3 {[%clk 0:02:29]}  a6 {[%clk 0:01:41]} 14. Nd4 {[%clk 0:02:29]}  Nxd4 {[%clk 0:01:41]} 15. Bxd4 {[%clk 0:02:30]}  Nh5 {[%clk 0:01:42]} 16. Bxg7 {[%clk 0:02:29]}  Kxg7 {[%clk 0:01:43]} 17. Rf1 {[%clk 0:02:14]}  Rxb2 {[%clk 0:01:40]} 18. Nb3 {[%clk 0:02:15]}  Be6 {[%clk 0:01:21]} 19. Kd2 {[%clk 0:02:15]}  Rc8 {[%clk 0:01:18]} 20. Kc1 {[%clk 0:02:09]}  Rxb3 {[%clk 0:00:57]} 21. axb3 {[%clk 0:02:09]}  Bxb3 {[%clk 0:00:58]} 22. Rxa6 {[%clk 0:02:08]}  Bc4 {[%clk 0:00:40]} 23. Bxc4 {[%clk 0:01:47]}  Rxc4 {[%clk 0:00:41]} 24. e5 {[%clk 0:01:39]}  Nxf4 {[%clk 0:00:35]} 25. exd6 {[%clk 0:01:39]}  exd6 {[%clk 0:00:35]} 26. Rxd6 {[%clk 0:01:39]}  Nxg2 {[%clk 0:00:32]} 27. Rf2 {[%clk 0:01:00]}  Ne3 {[%clk 0:00:24]} 28. Rd7 {[%clk 0:00:57]}  Nf5 {[%clk 0:00:22]} 29. Kb2 {[%clk 0:00:57]}  Rb4+ {[%clk 0:00:19]} 30. Ka3 {[%clk 0:00:56]}  Rh4 {[%clk 0:00:20]} 31. Rd3 {[%clk 0:00:51]}  h5 {[%clk 0:00:20]} 32. Kb3 {[%clk 0:00:50]}  Nd4+ {[%clk 0:00:19]} 33. Kb2 {[%clk 0:00:51]}  Ne6 {[%clk 0:00:18]} 34. c3 {[%clk 0:00:45]}  Ng5 {[%clk 0:00:18]} 35. Kb3 {[%clk 0:00:42]}  Ne4 {[%clk 0:00:16]} 36. Rd4 {[%clk 0:00:39]}  f5 {[%clk 0:00:13]} 37. Rh2 {[%clk 0:00:32]}  Rf4 {[%clk 0:00:11]} 38. Kb4 {[%clk 0:00:32]}  Rf3 {[%clk 0:00:10]} 39. c4 {[%clk 0:00:32]}  Rf1 {[%clk 0:00:08]} 40. Rb2 {[%clk 0:00:30]}  Rc1 {[%clk 0:00:08]} 41. Kb5 {[%clk 0:00:22]}  Nf6 {[%clk 0:00:07]} 42. Kc6 {[%clk 0:00:21]}  g5 {[%clk 0:00:07]} 43. c5 {[%clk 0:00:16]}  Ne4 {[%clk 0:00:07]} 44. Rd5 {[%clk 0:00:15]}  Kf6 {[%clk 0:00:07]} 45. Rb8 {[%clk 0:00:13]}  g4 {[%clk 0:00:07]} 46. Rf8+ {[%clk 0:00:11]}  Ke7 {[%clk 0:00:06]} 47. Rfxf5 {[%clk 0:00:10]}  Nf6 {[%clk 0:00:06]} 48. Rde5+ {[%clk 0:00:10]}  Kf7 {[%clk 0:00:06]} 49. hxg4 {[%clk 0:00:10]}  hxg4 {[%clk 0:00:07]} 50. Rf4 {[%clk 0:00:09]}  Kg6 {[%clk 0:00:06]} 51. Re6 {[%clk 0:00:09]}  Kg5 {[%clk 0:00:05]} 52. Rexf6 {[%clk 0:00:09]}  g3 {[%clk 0:00:05]} 53. R4f5+ {[%clk 0:00:09]}  Kg4 {[%clk 0:00:04]} 54. Rf8 {[%clk 0:00:09]}  g2 {[%clk 0:00:04]} 55. R5f7 {[%clk 0:00:09]}  g1=Q {[%clk 0:00:04]} 56. Rg8+ {[%clk 0:00:09]}  Kh4 {[%clk 0:00:04]} 57. Rh7# {[%clk 0:00:09]} 1-0


[Site "https://www.chess.com"]

[Event "Titled Tuesday Blitz November 08 Early 2022"]
[White "Mirzoev, Azer"]
[Black "Crevatin, Leo"]
[WhiteFideId "13400304"]
[BlackFideId "1726307"]
[WhiteElo "2682"]
[BlackElo "2521"]
[Result "1/2-1/2"]
[Round "09"]
[TimeControl "180+1"]
[Date "2022.11.09"]
[WhiteClock "0:00:07"]
[BlackClock "0:00:06"]

1. e4 {[%clk 0:02:59]}  c5 {[%clk 0:02:55]} 2. Nc3 {[%clk 0:02:59]}  Nc6 {[%clk 0:02:55]} 3. g3 {[%clk 0:03:00]}  g6 {[%clk 0:02:55]} 4. Bg2 {[%clk 0:03:01]}  Bg7 {[%clk 0:02:55]} 5. d3 {[%clk 0:03:01]}  e6 {[%clk 0:02:55]} 6. h4 {[%clk 0:03:01]}  h5 {[%clk 0:02:45]} 7. Be3 {[%clk 0:02:59]}  d6 {[%clk 0:02:41]} 8. Qd2 {[%clk 0:02:54]}  Rb8 {[%clk 0:02:39]} 9. Nh3 {[%clk 0:02:51]}  b5 {[%clk 0:02:38]} 10. Ng5 {[%clk 0:02:51]}  Nge7 {[%clk 0:02:31]} 11. O-O-O {[%clk 0:02:44]}  a5 {[%clk 0:02:17]} 12. Kb1 {[%clk 0:02:43]}  a4 {[%clk 0:02:16]} 13. Ne2 {[%clk 0:02:40]}  Qc7 {[%clk 0:02:06]} 14. f4 {[%clk 0:02:35]}  O-O {[%clk 0:01:59]} 15. Bf3 {[%clk 0:02:29]}  d5 {[%clk 0:01:54]} 16. g4 {[%clk 0:02:24]}  d4 {[%clk 0:01:49]} 17. Bf2 {[%clk 0:02:22]}  f6 {[%clk 0:01:47]} 18. gxh5 {[%clk 0:02:18]}  fxg5 {[%clk 0:01:46]} 19. hxg5 {[%clk 0:02:19]}  b4 {[%clk 0:01:27]} 20. hxg6 {[%clk 0:02:16]}  Nxg6 {[%clk 0:01:25]} 21. Bg3 {[%clk 0:02:15]}  b3 {[%clk 0:01:17]} 22. cxb3 {[%clk 0:02:14]}  axb3 {[%clk 0:01:18]} 23. a3 {[%clk 0:02:14]}  Qa5 {[%clk 0:00:51]} 24. Qxa5 {[%clk 0:02:12]}  Nxa5 {[%clk 0:00:51]} 25. f5 {[%clk 0:02:04]}  Be5 {[%clk 0:00:45]} 26. Bh5 {[%clk 0:01:58]}  Bxg3 {[%clk 0:00:30]} 27. Bxg6 {[%clk 0:01:58]}  exf5 {[%clk 0:00:12]} 28. Nxg3 {[%clk 0:01:57]}  fxe4 {[%clk 0:00:11]} 29. Nxe4 {[%clk 0:01:56]}  Kg7 {[%clk 0:00:11]} 30. Bh5 {[%clk 0:01:39]}  c4 {[%clk 0:00:11]} 31. dxc4 {[%clk 0:01:36]}  Bf5 {[%clk 0:00:11]} 32. Bf3 {[%clk 0:01:25]}  Rbd8 {[%clk 0:00:09]} 33. c5 {[%clk 0:01:15]}  Rfe8 {[%clk 0:00:09]} 34. Rhe1 {[%clk 0:01:15]}  Nc4 {[%clk 0:00:07]} 35. Kc1 {[%clk 0:01:03]}  Ne3 {[%clk 0:00:07]} 36. Nf6 {[%clk 0:00:47]}  Re5 {[%clk 0:00:07]} 37. Kd2 {[%clk 0:00:30]}  Nc4+ {[%clk 0:00:04]} 38. Kc1 {[%clk 0:00:29]}  Ne3 {[%clk 0:00:04]} 39. Rxe3 {[%clk 0:00:16]}  Rxe3 {[%clk 0:00:02]} 40. Bd5 {[%clk 0:00:09]}  Re5 {[%clk 0:00:02]} 41. Bxb3 {[%clk 0:00:08]}  Rxc5+ {[%clk 0:00:02]} 42. Kd2 {[%clk 0:00:08]}  Rb8 {[%clk 0:00:01]} 43. Bd5 {[%clk 0:00:07]}  Rxb2+ {[%clk 0:00:01]} 44. Ke1 {[%clk 0:00:07]}  Rcc2 {[%clk 0:00:02]} 45. Bf3 {[%clk 0:00:07]}  Rf2 {[%clk 0:00:03]} 46. Rxd4 {[%clk 0:00:06]}  Rxf3 {[%clk 0:00:03]} 47. Nh5+ {[%clk 0:00:06]}  Kg6 {[%clk 0:00:03]} 48. Nf4+ {[%clk 0:00:06]}  Kxg5 {[%clk 0:00:03]} 49. Ne2 {[%clk 0:00:06]}  Re3 {[%clk 0:00:03]} 50. Rd2 {[%clk 0:00:05]}  Bd3 {[%clk 0:00:04]} 51. Rxb2 {[%clk 0:00:05]}  Bxe2 {[%clk 0:00:04]} 52. Rxe2 {[%clk 0:00:05]}  Rxa3 {[%clk 0:00:05]} 53. Rg2+ {[%clk 0:00:05]}  Kf4 {[%clk 0:00:04]} 54. Rd2 {[%clk 0:00:05]}  Ke3 {[%clk 0:00:04]} 55. Re2+ {[%clk 0:00:06]}  Kf3 {[%clk 0:00:04]} 56. Rf2+ {[%clk 0:00:06]}  Ke3 {[%clk 0:00:05]} 57. Re2+ {[%clk 0:00:06]}  Kf3 {[%clk 0:00:06]} 58. Rf2+ {[%clk 0:00:07]}  Ke3 {[%clk 0:00:06]} 59. Re2+ {[%clk 0:00:07]} 1/2-1/2


[Site "https://www.chess.com"]

[Event "Titled Tuesday Blitz November 08 Early 2022"]
[White "Mosadeghpour, Masoud"]
[Black "Firouzja, Alireza"]
[WhiteFideId "12519278"]
[BlackFideId "12573981"]
[WhiteElo "2393"]
[BlackElo "2903"]
[Result "0-1"]
[Round "09"]
[TimeControl "180+1"]
[Date "2022.11.08"]
[WhiteClock "0:00:03"]
[BlackClock "0:01:41"]

1. e4 {[%clk 0:02:57]}  c5 {[%clk 0:02:53]} 2. Nf3 {[%clk 0:02:55]}  d6 {[%clk 0:02:54]} 3. d4 {[%clk 0:02:55]}  cxd4 {[%clk 0:02:55]} 4. Nxd4 {[%clk 0:02:55]}  Nf6 {[%clk 0:02:55]} 5. Nc3 {[%clk 0:02:55]}  Nc6 {[%clk 0:02:56]} 6. Be2 {[%clk 0:02:49]}  e5 {[%clk 0:02:54]} 7. Nb3 {[%clk 0:02:48]}  Be7 {[%clk 0:02:54]} 8. O-O {[%clk 0:02:47]}  O-O {[%clk 0:02:55]} 9. f4 {[%clk 0:02:46]}  a5 {[%clk 0:02:55]} 10. Be3 {[%clk 0:02:31]}  a4 {[%clk 0:02:55]} 11. Nd2 {[%clk 0:02:31]}  a3 {[%clk 0:02:54]} 12. b3 {[%clk 0:02:29]}  Qa5 {[%clk 0:02:46]} 13. Nb5 {[%clk 0:02:23]}  d5 {[%clk 0:02:47]} 14. fxe5 {[%clk 0:01:58]}  Nxe5 {[%clk 0:02:39]} 15. exd5 {[%clk 0:01:46]}  Nxd5 {[%clk 0:02:37]} 16. Bd4 {[%clk 0:01:46]}  Nc6 {[%clk 0:02:35]} 17. Bf2 {[%clk 0:01:29]}  Rd8 {[%clk 0:02:27]} 18. Bf3 {[%clk 0:01:11]}  Nf6 {[%clk 0:02:05]} 19. Bxc6 {[%clk 0:00:59]}  Rxd2 {[%clk 0:02:05]} 20. Qe1 {[%clk 0:00:57]}  bxc6 {[%clk 0:02:05]} 21. Nd4 {[%clk 0:00:45]}  Bf8 {[%clk 0:02:05]} 22. Nxc6 {[%clk 0:00:36]}  Qc3 {[%clk 0:01:53]} 23. Rd1 {[%clk 0:00:16]}  Rxc2 {[%clk 0:01:41]} 24. Qxc3 {[%clk 0:00:16]}  Rxc3 {[%clk 0:01:40]} 25. Ne5 {[%clk 0:00:11]}  Rc2 {[%clk 0:01:38]} 26. Rd8 {[%clk 0:00:08]}  Bb7 {[%clk 0:01:38]} 27. Rfd1 {[%clk 0:00:07]}  Rxd8 {[%clk 0:01:38]} 28. Rxd8 {[%clk 0:00:07]}  Rxa2 {[%clk 0:01:38]} 29. Bc5 {[%clk 0:00:05]}  Ra1+ {[%clk 0:01:39]} 30. Kf2 {[%clk 0:00:04]}  Ne4+ {[%clk 0:01:39]} 31. Ke3 {[%clk 0:00:02]}  Nxc5 {[%clk 0:01:40]} 32. b4 {[%clk 0:00:03]}  Ne6 {[%clk 0:01:40]} 33. Rb8 {[%clk 0:00:02]}  a2 {[%clk 0:01:41]} 34. Nd7 {[%clk 0:00:02]}  Re1+ {[%clk 0:01:41]} 35. Kf2 {[%clk 0:00:03]}  a1=Q {[%clk 0:01:41]} 0-1


[Site "https://www.chess.com"]

[Event "Titled Tuesday Blitz November 08 Early 2022"]
[White "Moskvin, Anatoly"]
[Black "Averjanov, Alexey"]
[WhiteFideId "24199990"]
[BlackFideId "14109867"]
[WhiteElo "2079"]
[BlackElo "2584"]
[Result "0-1"]
[Round "09"]
[TimeControl "180+1"]
[Date "2022.11.09"]
[WhiteClock "0:00:04"]
[BlackClock "0:00:48"]

1. e4 {[%clk 0:03:00]}  c6 {[%clk 0:02:59]} 2. c4 {[%clk 0:03:00]}  d5 {[%clk 0:02:59]} 3. exd5 {[%clk 0:03:01]}  cxd5 {[%clk 0:02:58]} 4. cxd5 {[%clk 0:03:02]}  Nf6 {[%clk 0:02:58]} 5. Nc3 {[%clk 0:03:03]}  g6 {[%clk 0:02:57]} 6. Nf3 {[%clk 0:03:04]}  Nxd5 {[%clk 0:02:57]} 7. Bb5+ {[%clk 0:03:02]}  Bd7 {[%clk 0:02:55]} 8. Qb3 {[%clk 0:02:45]}  Nxc3 {[%clk 0:02:52]} 9. dxc3 {[%clk 0:02:39]}  Bg7 {[%clk 0:02:49]} 10. O-O {[%clk 0:02:37]}  Bxb5 {[%clk 0:02:48]} 11. Qxb5+ {[%clk 0:02:37]}  Qd7 {[%clk 0:02:49]} 12. Qxd7+ {[%clk 0:02:36]}  Nxd7 {[%clk 0:02:50]} 13. Re1 {[%clk 0:02:37]}  e6 {[%clk 0:02:50]} 14. Be3 {[%clk 0:02:31]}  O-O {[%clk 0:02:48]} 15. Rad1 {[%clk 0:02:32]}  Rfd8 {[%clk 0:02:46]} 16. Kf1 {[%clk 0:02:22]}  Kf8 {[%clk 0:02:45]} 17. Rd2 {[%clk 0:02:10]}  Ke8 {[%clk 0:02:44]} 18. Red1 {[%clk 0:02:09]}  a6 {[%clk 0:02:35]} 19. Ng5 {[%clk 0:01:59]}  h6 {[%clk 0:02:20]} 20. Ne4 {[%clk 0:01:58]}  Ke7 {[%clk 0:02:18]} 21. Nd6 {[%clk 0:01:52]}  Rab8 {[%clk 0:02:16]} 22. Nxf7 {[%clk 0:01:50]}  Kxf7 {[%clk 0:02:08]} 23. Rxd7+ {[%clk 0:01:51]}  Ke8 {[%clk 0:02:05]} 24. Rxd8+ {[%clk 0:01:47]}  Rxd8 {[%clk 0:02:06]} 25. Rxd8+ {[%clk 0:01:47]}  Kxd8 {[%clk 0:02:07]} 26. Ke2 {[%clk 0:01:48]}  Kd7 {[%clk 0:02:07]} 27. Kd3 {[%clk 0:01:48]}  Kc6 {[%clk 0:02:07]} 28. Bd4 {[%clk 0:01:44]}  Bf8 {[%clk 0:02:07]} 29. Ke4 {[%clk 0:01:41]}  Bd6 {[%clk 0:02:07]} 30. Be5 {[%clk 0:01:37]}  Bc5 {[%clk 0:02:07]} 31. f3 {[%clk 0:01:36]}  Kd7 {[%clk 0:02:07]} 32. g4 {[%clk 0:01:32]}  b5 {[%clk 0:02:05]} 33. b3 {[%clk 0:01:22]}  Ke7 {[%clk 0:02:02]} 34. Bf4 {[%clk 0:01:18]}  h5 {[%clk 0:02:01]} 35. gxh5 {[%clk 0:01:19]}  gxh5 {[%clk 0:02:01]} 36. Bg5+ {[%clk 0:01:15]}  Kf7 {[%clk 0:01:59]} 37. h3 {[%clk 0:01:11]}  Kg6 {[%clk 0:01:56]} 38. Be3 {[%clk 0:01:12]}  Bd6 {[%clk 0:01:55]} 39. c4 {[%clk 0:01:05]}  bxc4 {[%clk 0:01:54]} 40. bxc4 {[%clk 0:01:06]}  Kf6 {[%clk 0:01:54]} 41. c5 {[%clk 0:01:04]}  Bc7 {[%clk 0:01:53]} 42. Bf4 {[%clk 0:01:04]}  e5 {[%clk 0:01:49]} 43. Bg3 {[%clk 0:01:02]}  Ke6 {[%clk 0:01:49]} 44. a4 {[%clk 0:01:00]}  Bb8 {[%clk 0:01:45]} 45. h4 {[%clk 0:00:58]}  Bc7 {[%clk 0:01:45]} 46. f4 {[%clk 0:00:53]}  exf4 {[%clk 0:01:44]} 47. Bxf4 {[%clk 0:00:54]}  Bd8 {[%clk 0:01:26]} 48. c6 {[%clk 0:00:50]}  Bxh4 {[%clk 0:01:23]} 49. c7 {[%clk 0:00:50]}  Kd7 {[%clk 0:01:23]} 50. Kd5 {[%clk 0:00:45]}  Bf2 {[%clk 0:01:22]} 51. Ke4 {[%clk 0:00:33]}  Bb6 {[%clk 0:01:18]} 52. Kf5 {[%clk 0:00:24]}  Bxc7 {[%clk 0:01:17]} 53. Bd2 {[%clk 0:00:24]}  Bd8 {[%clk 0:01:12]} 54. Kf4 {[%clk 0:00:13]}  Kc6 {[%clk 0:01:09]} 55. Kg3 {[%clk 0:00:12]}  Kd5 {[%clk 0:01:06]} 56. Be1 {[%clk 0:00:13]}  Kc4 {[%clk 0:01:05]} 57. Kh3 {[%clk 0:00:06]}  Kb3 {[%clk 0:01:04]} 58. a5 {[%clk 0:00:07]}  Kc4 {[%clk 0:01:03]} 59. Kg3 {[%clk 0:00:06]}  Kb5 {[%clk 0:01:02]} 60. Kf4 {[%clk 0:00:07]}  Bxa5 {[%clk 0:00:57]} 61. Bf2 {[%clk 0:00:07]}  Bd8 {[%clk 0:00:53]} 62. Bd4 {[%clk 0:00:07]}  a5 {[%clk 0:00:52]} 63. Kf5 {[%clk 0:00:07]}  Kc4 {[%clk 0:00:50]} 64. Bg7 {[%clk 0:00:06]}  a4 {[%clk 0:00:49]} 65. Bh8 {[%clk 0:00:06]}  a3 {[%clk 0:00:49]} 66. Bg7 {[%clk 0:00:06]}  a2 {[%clk 0:00:49]} 67. Bh8 {[%clk 0:00:06]}  Kb3 {[%clk 0:00:49]} 68. Bg7 {[%clk 0:00:05]}  Ba5 {[%clk 0:00:49]} 69. Bh8 {[%clk 0:00:04]}  Bc3 {[%clk 0:00:48]} 0-1


[Site "https://www.chess.com"]

[Event "Titled Tuesday Blitz November 08 Early 2022"]
[White "Odegov, Artem"]
[Black "Luberanski, Jakub"]
[WhiteFideId "34183644"]
[BlackFideId "21830509"]
[WhiteElo "2298"]
[BlackElo "2109"]
[Result "0-1"]
[Round "09"]
[TimeControl "180+1"]
[Date "2022.11.09"]
[WhiteClock "0:00:02"]
[BlackClock "0:00:40"]

1. d4 {[%clk 0:02:52]}  d5 {[%clk 0:02:58]} 2. c4 {[%clk 0:02:52]}  e6 {[%clk 0:02:58]} 3. Nc3 {[%clk 0:02:51]}  Nf6 {[%clk 0:02:58]} 4. Bg5 {[%clk 0:02:50]}  Be7 {[%clk 0:02:58]} 5. Nf3 {[%clk 0:02:50]}  O-O {[%clk 0:02:54]} 6. Qc2 {[%clk 0:02:48]}  Nbd7 {[%clk 0:02:49]} 7. e3 {[%clk 0:02:49]}  c6 {[%clk 0:02:41]} 8. Rd1 {[%clk 0:02:46]}  b6 {[%clk 0:02:37]} 9. h4 {[%clk 0:02:39]}  Bb7 {[%clk 0:02:37]} 10. Ne5 {[%clk 0:02:33]}  Rc8 {[%clk 0:02:34]} 11. cxd5 {[%clk 0:02:27]}  exd5 {[%clk 0:02:32]} 12. Bd3 {[%clk 0:02:26]}  h6 {[%clk 0:02:25]} 13. Bf4 {[%clk 0:02:17]}  c5 {[%clk 0:02:23]} 14. O-O {[%clk 0:02:15]}  cxd4 {[%clk 0:02:19]} 15. exd4 {[%clk 0:02:16]}  Ne4 {[%clk 0:02:20]} 16. h5 {[%clk 0:01:59]}  Nxe5 {[%clk 0:02:15]} 17. Bxe5 {[%clk 0:01:57]}  Bf6 {[%clk 0:02:12]} 18. Rc1 {[%clk 0:01:26]}  Bxe5 {[%clk 0:02:08]} 19. dxe5 {[%clk 0:01:27]}  Nxc3 {[%clk 0:01:53]} 20. bxc3 {[%clk 0:01:25]}  Qg5 {[%clk 0:01:21]} 21. Qe2 {[%clk 0:01:15]}  d4 {[%clk 0:01:08]} 22. f4 {[%clk 0:01:16]}  Qg3 {[%clk 0:01:09]} 23. c4 {[%clk 0:00:55]}  Bxg2 {[%clk 0:01:06]} 24. Qxg2 {[%clk 0:00:45]}  Qxd3 {[%clk 0:01:04]} 25. f5 {[%clk 0:00:46]}  Qe3+ {[%clk 0:01:03]} 26. Kh1 {[%clk 0:00:40]}  Qxe5 {[%clk 0:01:03]} 27. Rce1 {[%clk 0:00:37]}  Qf6 {[%clk 0:01:03]} 28. Qd5 {[%clk 0:00:36]}  Qh4+ {[%clk 0:01:02]} 29. Kg2 {[%clk 0:00:36]}  Qg5+ {[%clk 0:00:57]} 30. Kh2 {[%clk 0:00:32]}  Qxh5+ {[%clk 0:00:56]} 31. Kg3 {[%clk 0:00:32]}  Qg5+ {[%clk 0:00:57]} 32. Kh3 {[%clk 0:00:32]}  Rfe8 {[%clk 0:00:55]} 33. Qxd4 {[%clk 0:00:22]}  Rxe1 {[%clk 0:00:54]} 34. Rxe1 {[%clk 0:00:23]}  Qxf5+ {[%clk 0:00:55]} 35. Kh2 {[%clk 0:00:23]}  Qc2+ {[%clk 0:00:53]} 36. Kh1 {[%clk 0:00:22]}  Qxc4 {[%clk 0:00:51]} 37. Qf2 {[%clk 0:00:17]}  Qd5+ {[%clk 0:00:50]} 38. Kg1 {[%clk 0:00:15]}  Qg5+ {[%clk 0:00:49]} 39. Kh1 {[%clk 0:00:15]}  Qh5+ {[%clk 0:00:48]} 40. Kg1 {[%clk 0:00:15]}  Qg6+ {[%clk 0:00:49]} 41. Kh1 {[%clk 0:00:15]}  Rc2 {[%clk 0:00:48]} 42. Qf3 {[%clk 0:00:13]}  Qc6 {[%clk 0:00:46]} 43. Qxc6 {[%clk 0:00:08]}  Rxc6 {[%clk 0:00:45]} 44. Re8+ {[%clk 0:00:09]}  Kh7 {[%clk 0:00:45]} 45. Re7 {[%clk 0:00:10]}  Rc1+ {[%clk 0:00:39]} 46. Kh2 {[%clk 0:00:10]}  Rc2+ {[%clk 0:00:40]} 47. Kh3 {[%clk 0:00:11]}  Rxa2 {[%clk 0:00:38]} 48. Rxf7 {[%clk 0:00:11]}  a5 {[%clk 0:00:38]} 49. Rb7 {[%clk 0:00:11]}  Rb2 {[%clk 0:00:38]} 50. Ra7 {[%clk 0:00:09]}  Rb4 {[%clk 0:00:39]} 51. Kh2 {[%clk 0:00:09]}  a4 {[%clk 0:00:38]} 52. Ra6 {[%clk 0:00:09]}  b5 {[%clk 0:00:39]} 53. Rc6 {[%clk 0:00:04]}  Rb3 {[%clk 0:00:39]} 54. Rc1 {[%clk 0:00:03]}  a3 {[%clk 0:00:39]} 55. Rg1 {[%clk 0:00:03]}  b4 {[%clk 0:00:39]} 56. Kh1 {[%clk 0:00:02]}  Rb2 {[%clk 0:00:40]} 57. Rg3 {[%clk 0:00:02]}  a2 {[%clk 0:00:40]} 58. Rg1 {[%clk 0:00:02]}  Rb1 {[%clk 0:00:40]} 59. Kh2 {[%clk 0:00:01]}  Rxg1 {[%clk 0:00:40]} 60. Kh3 {[%clk 0:00:02]} 0-1


[Site "https://www.chess.com"]

[Event "Titled Tuesday Blitz November 08 Early 2022"]
[White "Orlov, Georgi"]
[Black "Antonova, Nadezhda"]
[WhiteFideId "2011271"]
[BlackFideId "14700182"]
[WhiteElo "2561"]
[BlackElo "1813"]
[Result "1-0"]
[Round "09"]
[TimeControl "180+1"]
[Date "2022.11.09"]
[WhiteClock "0:01:20"]
[BlackClock "0:01:28"]

1. e4 {[%clk 0:03:00]}  c5 {[%clk 0:02:59]} 2. Nf3 {[%clk 0:03:01]}  d6 {[%clk 0:02:58]} 3. Nc3 {[%clk 0:02:57]}  Nf6 {[%clk 0:02:57]} 4. d4 {[%clk 0:02:57]}  cxd4 {[%clk 0:02:54]} 5. Nxd4 {[%clk 0:02:57]}  a6 {[%clk 0:02:54]} 6. Bc4 {[%clk 0:02:57]}  e6 {[%clk 0:02:53]} 7. Bb3 {[%clk 0:02:56]}  Be7 {[%clk 0:02:53]} 8. f4 {[%clk 0:02:55]}  Qc7 {[%clk 0:02:52]} 9. f5 {[%clk 0:02:51]}  e5 {[%clk 0:02:46]} 10. Nde2 {[%clk 0:02:51]}  h6 {[%clk 0:02:43]} 11. Ng3 {[%clk 0:02:48]}  O-O {[%clk 0:02:42]} 12. Nh5 {[%clk 0:02:34]}  Nbd7 {[%clk 0:02:34]} 13. O-O {[%clk 0:02:31]}  Nxh5 {[%clk 0:02:31]} 14. Qxh5 {[%clk 0:02:30]}  Nf6 {[%clk 0:02:30]} 15. Qh3 {[%clk 0:02:22]}  b5 {[%clk 0:02:26]} 16. Rf3 {[%clk 0:02:17]}  Bb7 {[%clk 0:02:19]} 17. Bxh6 {[%clk 0:02:01]}  Nxe4 {[%clk 0:02:03]} 18. Nxe4 {[%clk 0:01:44]}  Bxe4 {[%clk 0:02:00]} 19. Bxg7 {[%clk 0:01:22]}  Kxg7 {[%clk 0:01:40]} 20. Qg4+ {[%clk 0:01:22]}  Kf6 {[%clk 0:01:28]} 21. Qh4+ {[%clk 0:01:20]} 1-0


[Site "https://www.chess.com"]